Cogmind - Beta 17.1 @@@ ROGUE MODE // 2026.09.02 @ 15:11:11 // Winter2019/RPGLIKE Player: teag2 Result: Destroyed by D-53 Grenadier with Mini Grenade Launcher Performance ------------- Evolutions (0) 0 Regions Visited (2) 400 Robots Destroyed (19) 95 Value Destroyed (469) 469 Prototype IDs (2) 40 Alien Tech Used (0) 0 Bonus (0) 0 TOTAL SCORE: 1004 Bonus ------- None Cogmind --------- Core Integrity 0/600 Matter 201/300 Energy 13/100 System Corruption 0% Temperature Cool (0) Movement Flying (37) Location -10/Mines Parts ------- > --- POWER (1) -------- (None) > --- PROPULSION (2) --- Flight Unit Flight Unit > --- UTILITY (2) ------ Shield Generator > --- WEAPON (2) ------- Assault Rifle Light Assault Rifle > --- INVENTORY (2) ---- Shield Generator Grenade Launcher Peak State ------------ > --- POWER ------------ Light Nuclear Core > --- PROPULSION ------- Flight Unit Flight Unit > --- UTILITY ---------- Shield Generator > --- WEAPON ----------- Assault Rifle Light Assault Rifle > --- INVENTORY -------- Grenade Launcher [Rating: 9] Favorites ----------- Power Ion Engine Engine Ion Engine Power Core Light Nuclear Core Propulsion Flight Unit Leg Aluminum Leg Flight Unit Flight Unit Utility Shield Generator Device Shield Generator Weapon Assault Rifle Ballistic Gun Assault Rifle Launcher Grenade Launcher Build | -11 -10 -10 ------- Run | Yrd Mat Min Slots Evolved 3 | 3 . . Power . | . . . Propulsion 1 | 1 . . Utility 1 | 1 . . Weapon 1 | 1 . . Parts Attached 9 | 1 8 . Power 3 | . 3 . Engine 2 | . 2 . Core 1 | . 1 . Reactor . | . . . Propulsion 2 | . 2 . Treads . | . . . Leg . | . . . Wheel . | . . . Hover . | . . . Flight 2 | . 2 . Utility 1 | . 1 . Device 1 | . 1 . Storage . | . . . Processor . | . . . Hackware . | . . . Protection . | . . . Artifact . | . . . Weapon 3 | 1 2 . Energy Gun . | . . . Energy Cannon . | . . . Ballistic Gun 2 | 1 1 . Ballistic Cannon . | . . . Launcher 1 | . 1 . Special Weapon . | . . . Impact Weapon . | . . . Slashing Weapon . | . . . Piercing Weapon . | . . . Special Melee Weapon . | . . . Unidentified Prototypes . | . . . Parts Lost 2 | . 1 1 Power 2 | . 1 1 Propulsion . | . . . Utility . | . . . Weapon . | . . . Highest Loss Streak 1 | . 1 1 To Critical Strikes . | . . . Average Backups 1 | . 1 2 Power . | . . . Propulsion . | . . . Utility . | . . 1 Weapon . | . . 1 Tool/Special . | . . . Unused Backups 1 | . 1 . Power 1 | . 1 . Propulsion . | . . . Utility . | . . . Weapon . | . . . Tool/Special . | . . . Average Slot Usage (%) 69 | . 67 85 Engine 10 | . 11 . Core 3 | . 2 14 Leg 1 | . 1 . Flight 23 | . 22 28 Device 2 | . . 14 Ballistic Gun 26 | . 26 22 Launcher 1 | . 1 6 Peak Build Rating 9 | 4 9 9 Average Rating 5 | 3 5 9 On Entrance 5 | 3 4 9 Avg Prop Armor Cover (%) . | . . . Naked Turns . | . . . Heaviest Build 12 | 8 10 12 Greatest Support 18 | 15 18 18 Greatest Overweight (x) . | . . . Average Overweight (x) . | . . . Largest Inventory Capacity 2 | 1 2 2 Average Capacity 1 | 1 1 2 Most Carried 2 | 1 2 2 Average Carried 1 | . 1 2 Final Capacity 2 | 1 2 2 Final Carried 2 | 1 2 2 Class Distribution -------------------- 100% | Mutant Dominant Class ---------------- Mutant | -10/Materials Mutant | -10/Mines Resources | -11 -10 -10 ----------- Run | Yrd Mat Min Matter Collected 519 | 200 309 10 Remotely . | . . . Salvage Created 524 | . 474 50 Parts 30 | . 27 3 Haulers Intercepted 1 | . 1 . Recyclers Shooed 1 | . . 1 Parts Field Recycled . | . . . Retrieved Matter . | . . . Parts Self-Destructed . | . . . Prevented . | . . . Parts Restored . | . . . Kills | -11 -10 -10 ------- Run | Yrd Mat Min Combat Hostiles Destroyed 15 | . 11 4 Guns 9 | . 9 . AOE 6 | . 2 4 Classes Destroyed 5 | . 5 . Worker 2 | . 1 1 Hauler 1 | . 1 . Watcher 1 | . 1 . Swarmer 5 | . 3 2 Grunt 10 | . 8 2 Best Kill Streak 5 | . 5 5 Combat Bots Only 5 | . 5 4 Max Kills in Single Turn 2 | . 1 2 Gunslinging . | . . . Exploded 2 | . 1 2 Melee . | . . . Uniques/NPCs Destroyed . | . . . Combat | -11 -10 -10 -------- Run | Yrd Mat Min Hostile Shots Fired 66 | . 52 14 Missed 26 | . 22 4 Hits 40 | . 30 10 Projectile 40 | . 30 10 AOE 10 | . . 10 Damage Taken 840 | . 473 367 Core 683 | . 369 314 Absorbed by Shields 48 | . . 48 Redirected to Core 489 | . 295 194 Ignored by Resistances 37 | . 37 . Core Remaining (%) 100 | 100 . . Volleys Fired 53 | . 42 11 Largest 2 | . 2 2 Hottest 50 | . 40 50 Shots Fired 96 | . 77 19 Gun 87 | . 73 14 Cannon . | . . . Launcher 9 | . 4 5 Special . | . . . Kinetic 87 | . 73 14 Thermal . | . . . Explosive 9 | . 4 5 Electromagnetic . | . . . Robot Hit Streak 11 | . 11 4 Robot Miss Streak 7 | . 3 7 Penetration Max . | . . . Secondary Targets 2 | . 2 . Max Gunslinging Chain 1 | . 1 . Shots Hit Robots 55 | . 48 7 Core Hits 42 | . 31 11 Critical Kills . | . . . Critical Parts Destroyed . | . . . Critical Strikes . | . . . Melee Attacks . | . . . Impact . | . . . Slashing . | . . . Piercing . | . . . Sneak Attacks . | . . . Combat Hostiles . | . . . Follow-up Attacks . | . . . Damage Inflicted 1202 | . 808 394 Guns 564 | . 514 50 Cannons . | . . . Explosions 638 | . 294 344 Melee . | . . . Ramming . | . . . Kinetic 564 | . 514 50 Thermal . | . . . Explosive 638 | . 294 344 Electromagnetic . | . . . Impact . | . . . Slashing . | . . . Piercing . | . . . Highest Corruption . | . . . Average Corruption . | . . . Corruption Purged . | . . . Corruption Blocked . | . . . Overload Shots . | . . . Overflow Damage . | . . . Projectiles . | . . . Explosions . | . . . Melee . | . . . Knockbacks . | . . . Impact . | . . . Kinetic . | . . . Secondary . | . . . Self-Inflicted Damage . | . . . Shots . | . . . Rammed . | . . . Targets Rammed . | . . . Kicked . | . . . Crushed . | . . . Highest Temperature 23 | . 23 . Average Temperature 5 | . 5 . Received Heat Transfer 165 | . 165 . Siege Activations . | . . . Martial Activations . | . . . Shielding Activations . | . . . Robots Disrupted . | . . . Combat Hostiles . | . . . Robots Corrupted . | . . . Combat Hostiles . | . . . Parts Fried . | . . . Impact Corruptions . | . . . Robots Melted . | . . . Combat Hostiles . | . . . Parts Melted . | . . . Heat Transferred . | . . . Parts Sabotaged . | . . . Parts Stolen . | . . . Parts Stripped . | . . . Power Chain Reactions . | . . . Alert | -11 -10 -10 ------- Run | Yrd Mat Min Maximum Alert Level 1 | . 1 1 Low Security (%) 80 | 100 80 78 Level 1 19 | . 19 21 Level 2 . | . . . Level 3 . | . . . Level 4 . | . . . Level 5 . | . . . High Security . | . . . Max Security . | . . . Peak Influence 260 | . 260 255 Initial 97 | . . 97 Average 129 | . 130 134 Influence Increases 618 | . 430 188 Destroy 0b10 Robot/C 300 | . 220 80 Destroy 0b10 Robot/NC 20 | . 15 5 Destroy Leader 84 | . 64 20 Successful Hack 26 | . 26 . Select Force Hacks 60 | . 60 . Disable Machine 30 | . 15 15 Destroy Structure 38 | . 15 23 Partial Spotted 15 | . 15 . Lose Combat Pursuer 45 | . . 45 Influence Decreases 373 | . 178 195 Entered New Map 155 | . . 155 Time Decay 208 | . 178 30 Lost Part 10 | . . 10 Squads Dispatched 3 | . 3 . Investigation 3 | . 3 . Extermination . | . . . Reinforcement . | . . . Assault . | . . . Garrison . | . . . Intercept . | . . . Searches Triggered . | . . . Construction Impeded . | . . . Haulers Reinforced . | . . . Active Scanning Responses . | . . . Cargo Convoy Interrupts . | . . . Stealth | -11 -10 -10 --------- Run | Yrd Mat Min Distress Signals 3 | . 2 1 Communications Jammed . | . . . Distress Signals . | . . . Times Spotted 24 | . 15 9 Peak Tracking Total 8 | . 6 8 Tactical Retreats 1 | . . 1 Traps | -11 -10 -10 ------- Run | Yrd Mat Min Traps Triggered 3 | . 3 . Indirectly . | . . . Trap Hack Attempts . | . . . Triggered . | . . . Disarmed . | . . . Reprogrammed . | . . . Reused . | . . . Traps Extracted . | . . . Installed . | . . . Triggered . | . . . Machines | -11 -10 -10 ---------- Run | Yrd Mat Min Machines Disabled 2 | . 1 1 Max in Single Turn 1 | . 1 1 Machines Repaired . | . . . Machines Dismantled . | . . . Machines Sabotaged . | . . . Overloaded Fab Kills . | . . . Hacking | -11 -10 -10 --------- Run | Yrd Mat Min Machines Accessed 8 | . 8 . Terminals 6 | . 6 . Fabricators . | . . . Repair Stations . | . . . Recycling Units 2 | . 2 . Scanalyzers . | . . . Garrison Access . | . . . Total Hacks 33 | . 33 . Successful 17 | . 17 . Failed 15 | . 15 . Catastrophic . | . . . Database Lockouts 1 | . 1 . Manual 26 | . 26 . Terminals 25 | . 25 . Fabricators . | . . . Repair Stations . | . . . Recycling Units 8 | . 8 . Scanalyzers . | . . . Garrison Access . | . . . Terminal Hacks 5 | . 5 . Robot Analysis 2 | . 2 . Prototype ID Bank 1 | . 1 . Terminal Index 1 | . 1 . Registered Prototypes 1 | . 1 . Fabricator Hacks . | . . . Repair Station Hacks . | . . . Recycling Unit Hacks 2 | . 2 . Retrieve Components 2 | . 2 . Scanalyzer . | . . . Garrison Access Hacks . | . . . Unauthorized Hacks 10 | . 10 . Terminals 8 | . 8 . Assimilate 1 | . 1 . Botnet 1 | . 1 . Operators 1 | . 1 . Skim 5 | . 5 . Fabricators . | . . . Repair Stations . | . . . Recycling Units 2 | . 2 . Tunnel 2 | . 2 . Scanalyzers . | . . . Garrison Access . | . . . Data Cores Recovered . | . . . Used . | . . . Hacking Detections 6 | . 6 . Full Trace Events . | . . . Feedback Events . | . . . Feedback Blocked . | . . . Robot Schematics Acquired . | . . . Robots Built . | . . . Authchips . | . . . Time . | . . . Total Robot Build Rating . | . . . Part Schematics Acquired . | . . . Parts Built . | . . . Authchips . | . . . Time . | . . . Total Part Build Rating . | . . . Part Studies Acquired . | . . . Parts Repaired . | . . . Time . | . . . Parts Recycled . | . . . Recycled Matter . | . . . Retrieved Matter . | . . . Retrieved Components 12 | . 12 . Parts Scanalyzed . | . . . Part Schematics Acquired . | . . . Parts Damaged . | . . . Bothacking | -11 -10 -10 ------------ Run | Yrd Mat Min Used RIF Installer . | . . . Robots Hacked . | . . . Non-combat . | . . . Combat . | . . . Robot Hacks Applied . | . . . Relay Couplers Released . | . . . Fabnet Peak Effective % . | . . . Robots Rewired . | . . . Allies Hacked . | . . . Hacks Repelled . | . . . Allies | -11 -10 -10 -------- Run | Yrd Mat Min Total Allies 1 | . 1 . Largest Group 1 | . 1 1 Highest-Rated Group 10 | . 10 10 Highest-Rated Ally 10 | . 10 10 Total Orders . | . . . Ally Attacks . | . . . Total Damage . | . . . Kills . | . . . Allies Corrupted . | . . . Allies Melted . | . . . Intel | -11 -10 -10 ------- Run | Yrd Mat Min Active Infowar (turns) . | . . . Robot Analysis Total 2 | . 2 . Derelict Logs Recovered 1 | . . 1 Drone Launches . | . . . Drone Recoveries . | . . . Exploration | -11 -10 -10 ------------- Run | Yrd Mat Min Turns Passed 517 | 6 446 65 Spaces Moved 709 | 3 611 95 Core . | . . . Treads . | . . . Legs 30 | 3 27 . Wheels . | . . . Hover . | . . . Flight 679 | . 584 95 Fastest Speed 37 | 120 37 37 Average Speed 41 | 120 41 37 Slowest Speed 120 | 120 120 37 Overloaded Moves . | . . . Propulsion Burnouts . | . . . Robots Hopped 8 | . 6 2 Potential Cave-ins . | . . . Cave-ins Triggered . | . . . Exploration Rate (%) 39 | 3 87 27 Regions Visited 2 Branch Regions 1 Pre-discovered Areas 3 | . 3 . Known Exits Taken . | . . . Unknown Exits Taken 2 | 1 1 . Scrap Searched 1 | . . 1 Spaces Dug . | . . . Terrain Destroyed 48 | . 17 31 Melee . | . . . Projectile . | . . . AOE 48 | . 17 31 Terrain Rammed . | . . . Walls Destroyed . | . . . Machines Disabled . | . . . Actions | -11 -10 -10 --------- Run | Yrd Mat Min Total 834 | 5 723 106 Wait 54 | . 54 . Move 691 | 2 598 91 Hop 8 | . 6 2 Pick Up 6 | 2 4 . Fast Attach 5 | . 5 . Attach 2 | 1 1 . Detach . | . . . Swap 8 | . 6 2 Drop 3 | . 3 . Fire 53 | . 42 11 Melee . | . . . Ram . | . . . Kick . | . . . Crush . | . . . Escape Stasis . | . . . Rewire . | . . . Trap . | . . . Miscellaneous 4 | . 4 . Route ------- -11/Scrapyard -10/Materials (discovered 4 exits: [*Mat x3] / [*Min]) -10/Mines History --------- Turn | Location | Event 1 | -11/Scrapyard | Upgraded with Propulsion slot (x1) 1 | -11/Scrapyard | Upgraded with Utility slot (x1) 1 | -11/Scrapyard | Upgraded with Weapon slot (x1) 1 | -11/Scrapyard | Discovered new exit (range 1) 7 | -11/Scrapyard | Entered Materials 133 | -10/Materials | Discovered new exit (range 8) 203 | -10/Materials | Central database locked down 203 | -10/Materials | Discovered new exit (range 5) 314 | -10/Materials | Build established: Mutant 323 | -10/Materials | Learned Storage stockpile data 366 | -10/Materials | Reached level 2 437 | -10/Materials | Discovered new exit (range 3) 439 | -10/Materials | Discovered new exit (range 16) 453 | -10/Materials | Entered Mines 453 | -10/Mines | Accompanied by 1 ally 458 | -10/Mines | Learned Materials terminal intel 479 | -10/Mines | Assembled infested the area 509 | -10/Mines | Core integrity fell below 50% 516 | -10/Mines | Core integrity fell below 20% 518 | -10/Mines | Destroyed by D-53 Grenadier with Mini Grenade Launcher Last Messages --------------- 00470_ Found 39 Matter. 00471_ Acquired 10 matter. 00473_ K-01 Serf collects debris. 00479_ ALERT: Infestation in the mines, dispatching Demolisher response squad. 00484_ as-76647 destroyed. 00485_ R-06 Scavenger sends out distress signal. 00486_ as-14980 destroyed. 00489_ S-10 Pest destroyed. 00501_ G-47 Trooper destroyed. 00501_ G-34 Mercenary destroyed. 00502_ K-01 Serf collects debris. 00504_ S-10 Pest destroyed. 00504_ Laser Drill disabled. 00505_ K-01 Serf collects debris. 00508_ K-01 Serf destroyed. 00515_ The unstable cave ceiling collapses. 00515_ R-06 Scavenger collects Lgt. Ion Engine. 00518_ The unstable cave ceiling collapses. 00518_ Lgt. Nuclear Core destroyed. Map ----- +----------------------------------------------------+ | ????????????????????????????????????# #??????????? | | ?????????????????????????????????#### #??????????? | | ?????????????????????????????????# #??????????? | | ?????????????????????????????????# ####??????????? | | ?????????????????????????????????# #?????????????? | | ?????????????????????????????????# #?????????????? | | ????????????????????????????????## #?????????????? | | ???????????????????????????????## ###???????????? | | ??????????????????????????????## ##??????????? | | ??????????????????????????????# #??????????? | | ??????????????????????????????# #??????????? | | ??????????????????????????????# """ ##??????? #?? | | ??????????????????????????###### """ #????? #?? | | ????????????????###??????## "" ### #?? | | ???????????????## #???### #?? | | ???????????????# ???# = #### #??? | | ???????????????# ??# #????????????? | | ????????????????# ??# #????????????? | | ?????????????????# ?## ##????????????? | | ?????????????????# #?# d# ? #?????????????? | | ??????????????????# ## ## #?????????????? | | ???????????????????# d ### #?????????????? | | ???????????????????## ### #?????????????? | | ????????????????????# # ### #?????????????? | | ????????????????????# ## #?????????????? | | ????????????????????# @ ## ###?????????????? | | ????????????????????# ## #???????????????? | | ????????????????????# ## #???????????????? | | ????????????????????## ### #???????????????? | | ???????????????????? r t ???????????????? | | ??????????????????? ##% ######???????????????? | | ?????????????????? #?# #####????????????????????? | | ?????????????????###??# ?????????????????????????? | | ??????????????????????# ?????????????????????????? | | ??????????????????????# ?????????????????????????? | | ?????????????????????? ??????????????????????????? | | ??????????????????????#??????????????????????????? | | ?????????????????????????????????????????????????? | | ?????????????????????????????????????????????????? | | ?????????????????????????????????????????????????? | | ?????????????????????????????????????????????????? | | ?????????????????????????????????????????????????? | | ?????????????????????????????????????????????????? | | ?????????????????????????????????????????????????? | | ?????????????????????????????????????????????????? | | ?????????????????????????????????????????????????? | | ?????????????????????????????????????????????????? | | ?????????????????????????????????????????????????? | | ?????????????????????????????????????????????????? | | ?????????????????????????????????????????????????? | +----------------------------------------------------+ Best States ------------- Heat Dissipation 31 Energy Generation 14 Energy Capacity 250 Matter Stores 300 Matter Capacity 300 Sight Range 17 Robot Scan Range 12 Terrain Scan Density 10 Resistance: KI 5 Resistance: TH 5 Evasion (%) 62 Offensive Hacking 5 Defensive Hacking 5 Item Schematics ----------------- None Robot Schematics ------------------ None Fabricated ------------ Nothing Repaired ---------- Nothing Studied --------- None Alien Tech Used ----------------- None Achievements -------------- None Challenges ------------ None RPGLIKE | -11 -10 -10 --------- Run | Yrd Mat Min Levels Raised 1 | . 1 . XP Earned 5880 | 3000 1805 1075 XP Spent 4475 | 2900 1575 . Upgrades 19 | 13 6 . Propulsion Slot 1 | 1 . . Utility Slot 1 | 1 . . Weapon Slot 1 | 1 . . Heat Dissipation 1 | . 1 . Mass Support 2 | 1 1 . Inventory Capacity 2 | 1 1 . Sight Range 1 | . 1 . Sensor Range 6 | 4 2 . Hack Attack % 1 | 1 . . Hack Defense % 1 | 1 . . KI Resistance % 1 | 1 . . TH Resistance % 1 | 1 . . Protomatter Created 70 | . 47 23 Integrity Restored 75 | . 75 . Core 75 | . 75 . Protomatter Decayed . | . . . Game ------ Seed CouplerDoorRigger Manual? 0 Play Time 00:11:34 Cumulative 137.3 hours Start 2026.09.02 @ 15:01:19 End 2026.09.02 @ 15:11:11 Sessions 1 Manual Loads 0 Difficulty Rogue Special Mode Winter2019/RPGLIKE Game No. 88 Rogue 87 Adventurer 1 Explorer 0 Win Type - Total 9 Types 4/1/1/1/0/0/0/1/0/1 Lore% 60 Gallery% 68 Achievement% 66 Wizard Run 0 Options --------- Layout 1 ASCII 0 Keyboard 0 Movement Numpad Keybinds 0 Fullscreen 1 Font 32/SmallcapsGlow Map View 50x35 Zoom Use 0% Tactical HUD 1 Map Filters NONE Filters NONE Steam 1 RUN: e12ec10c-9266-4593-84dc-bff1a7b3f636